bitfinex/quotes_SOLUSD_20251025
["timestamp","ask_amount","ask_price","bid_price","bid_amount"]
[1761378671175,3.84965623,194.02,193.97,37.35341273]
[1761378671399,3.84965623,194.01,193.97,37.35341273]
[1761378671696,104.52341273,194.03,193.97,37.35341273]
[1761378671898,3.85031943,194.02,193.97,37.35341273]
[1761378672084,107.35385555,194.03,193.97,40.8754364]
[1761378672283,3.85153311,194.02,193.99,1.63341273]
[1761378672483,107.35385555,194.03,194.0,35.7]
[1761378672685,3.85467081,194.02,194.0,35.7]
[1761378672888,0.69,194.02,194.0,35.7]
[1761378673797,108.04385555,194.03,194.0,35.7]
[1761378674095,108.04385555,194.03,194.0,37.33341273]
[1761378675186,102.2,194.03,194.0,37.33341273]
[1761378675999,102.89,194.03,194.0,35.7]
[1761378676377,102.89,194.03,194.0,37.33341273]
[1761378676773,5.843311,194.05,194.0,37.33341273]
[1761378676975,3.85560941,194.04,194.0,37.33341273]
[1761378677177,0.69,194.04,194.0,37.33341273]
[1761378677383,0.69,194.03,194.0,37.33341273]
[1761378677797,5.843311,194.05,194.0,37.33341273]
[1761378677996,9.00876318,194.04,194.0,37.33341273]
[1761378678191,5.15359475,194.04,194.0,37.33341273]
[1761378678894,5.84359475,194.04,194.0,37.33341273]
[1761378679092,5.153311,194.05,194.0,37.33341273]
[1761378679398,0.69,194.03,194.0,37.33341273]
[1761378679799,3.85379595,194.04,194.0,37.33341273]
[1761378679994,0.65,194.04,194.0,37.33341273]
[1761378680598,5.153311,194.05,194.0,42.48804917]
[1761378680803,5.80302973,194.07,194.02,1.63341273]
[1761378680996,4.50313176,194.06,194.03,35.7]
[1761378681195,0.65,194.06,194.03,35.7]
[1761378681583,0.65,194.06,194.03,37.33341273]
[1761378682004,0.65,194.06,194.03,35.7]
[1761378682402,5.80254465,194.08,194.04,1.63341273]
[1761378682586,5.80254465,194.08,194.03,42.4872058]
[1761378682790,0.65,194.07,194.03,42.4872058]
[1761378683188,0.65,194.07,194.03,40.85379307]
[1761378683386,0.65,194.07,194.03,42.4872058]
[1761378683587,5.8027806,194.07,194.03,35.7]
[1761378683999,0.65,194.06,194.03,35.7]
[1761378685188,0.65,194.06,194.02,6.78749009]
[1761378685391,0.65,194.06,194.03,35.7]
[1761378686700,0.65,194.06,194.04,35.7]
[1761378686897,0.65,194.06,193.99,13.40253638]
[1761378687201,0.65,194.06,194.02,1.63341273]
[1761378687403,0.65,194.06,194.03,35.68]
[1761378687892,1.63341273,194.05,193.99,1.63341273]
[1761378688216,1.63341273,194.04,194.0,35.68]
[1761378688712,0.65,194.03,194.0,35.68]
[1761378689513,0.65,194.03,193.95,22.88]
[1761378689514,7.43738028,194.03,193.95,22.88]
[1761378689815,0.65,194.02,193.97,1.63341273]
[1761378690796,5.80412774,194.02,193.97,1.63341273]
[1761378690996,0.65,194.01,193.97,1.63341273]
[1761378691212,0.65,194.01,193.97,6.78879411]
[1761378691396,0.65,194.01,193.98,1.63341273]
[1761378691600,0.65,194.01,193.99,35.68]
[1761378692008,0.65,194.02,193.99,35.68]
[1761378692714,0.65,194.02,193.99,37.31341273]
[1761378693019,14.51602635,194.06,194.0,1.63341273]
[1761378693020,10.87647521,194.05,194.0,1.63341273]
[1761378693320,0.65,194.05,194.0,1.63341273]
[1761378693622,0.65,194.04,194.0,1.63341273]
[1761378694605,0.65,194.04,193.99,42.46824881]
[1761378694819,0.65,194.04,193.99,40.83483608]
[1761378694999,5.80360863,194.04,193.99,42.46824881]
[1761378695420,0.65,194.03,193.99,42.46824881]
[1761378696121,0.65,194.03,194.0,1.63341273]
[1761378696316,0.65,194.04,194.0,1.63341273]
[1761378698903,0.65,194.04,194.0,6.78793128]
[1761378700809,0.65,194.04,194.01,2.55088629]
[1761378701010,0.65,194.04,194.02,35.68]
[1761378709832,5.80359147,194.04,194.0,2.55088629]
[1761378710021,8.35447776,194.04,194.01,35.68]
[1761378710214,0.68,194.03,194.01,35.68]
[1761378719219,5.15359147,194.04,194.02,35.68]
[1761378719426,5.83359147,194.04,194.02,35.68]
[1761378719810,0.68,194.04,194.0,7.70551468]
[1761378720012,0.68,194.04,194.01,35.68]
[1761378720338,5.15334317,194.05,194.01,38.23088629]
[1761378720534,4.53616592,194.04,194.01,38.23088629]
[1761378720706,0.68,194.05,194.01,38.23088629]
[1761378720911,3.85616517,194.04,194.01,38.23088629]
[1761378721107,0.68,194.05,194.01,38.23088629]
[1761378721335,3.85616592,194.04,194.01,38.23088629]
[1761378721524,0.68,194.05,194.01,38.23088629]
[1761378721723,3.85623281,194.04,194.01,38.23088629]
[1761378721932,0.68,194.05,194.01,38.23088629]
[1761378722125,3.85620541,194.04,194.01,38.23088629]
[1761378722430,0.68,194.05,194.01,38.23088629]
[1761378722631,3.85624698,194.04,194.01,38.23088629]
[1761378722831,0.68,194.05,194.01,38.23088629]
[1761378724029,0.68,194.05,194.02,2.55088629]
[1761378724817,5.15306084,194.06,194.01,40.8343707]
[1761378724818,0.68,194.07,194.04,2.55088629]
[1761378725024,3.85615023,194.06,194.05,35.68]
[1761378725343,0.68,194.07,194.05,35.68]
[1761378746035,0.68,194.07,194.05,35.63]
[1761378748140,0.69,194.1,194.06,2.55088629]
[1761378748370,0.69,194.1,194.07,35.66]
[1761378771685,2.32162533,194.1,194.07,35.66]
[1761378772076,0.66,194.09,194.07,35.66]
[1761378774585,117.67388781,194.13,194.08,1.63162533]
[1761378774775,102.2,194.13,194.1,1.63162533]
[1761378774978,102.2,194.13,194.11,35.64]
[1761378775182,102.86,194.13,194.11,35.64]
[1761378776292,102.86,194.13,194.11,37.27162533]
[1761378777789,0.66,194.13,194.11,37.27162533]
[1761378778494,5.81068137,194.15,194.11,37.27162533]
[1761378779076,0.67,194.14,194.11,35.64]
[1761378779486,0.67,194.14,194.11,42.42331036]
[1761378779785,0.87,194.16,194.12,1.63162533]
[1761378780384,0.67,194.15,194.11,35.64]
[1761378780790,1.63162533,194.14,194.09,5.15199697]
[1761378781000,1.63162533,194.14,194.1,35.64]
[1761378781190,0.67,194.13,194.1,35.64]
[1761378786693,15.47069592,194.12,194.1,35.64]
[1761378787108,16.14069592,194.12,194.1,35.64]
[1761378787303,0.67,194.11,194.1,35.64]
[1761378787787,15.47069592,194.11,194.1,37.27162533]
[1761378787984,0.67,194.13,194.1,37.27162533]
[1761378788410,15.47069592,194.12,194.1,37.27162533]
[1761378790002,16.14069592,194.12,194.1,37.27162533]
[1761378793193,0.67,194.11,194.1,35.64]
[1761378804128,0.67,194.11,194.08,6.78413278]
[1761378804421,0.67,194.11,194.09,35.64]
[1761378806721,0.67,194.11,194.1,35.64]
[1761378806941,16.1422917,194.11,194.1,35.64]
[1761378807427,21.29403872,194.11,194.1,35.64]
[1761378812942,33.80213926,194.11,194.1,35.64]
[1761378819959,46.6814345,194.11,194.07,35.64]
[1761378820155,12.50810054,194.09,194.07,35.64]
[1761378820661,27.03195946,194.08,194.07,35.64]
[1761378821459,32.18447388,194.08,194.07,35.64]
[1761378830661,15.47548425,194.08,194.07,35.64]
[1761378831265,0.66,194.1,194.07,35.64]
[1761378831467,15.47308971,194.09,194.07,35.64]
[1761378833642,16.13308971,194.09,194.07,35.64]
[1761378834867,15.47308971,194.09,194.07,35.64]
[1761378835176,16.13308971,194.09,194.07,35.64]
[1761378838170,20.62538383,194.09,194.07,35.64]
[1761378839444,21.31538383,194.09,194.07,35.64]
[1761378839952,5.84229412,194.09,194.07,35.64]
[1761378840157,0.69,194.08,194.07,35.64]
[1761378840450,16.16308971,194.08,194.07,35.64]
[1761378840757,0.69,194.08,194.07,35.64]
[1761378840966,21.31560413,194.08,194.0,23.39546391]
[1761378841265,3.24003718,194.07,194.01,38.19003718]
[1761378841465,0.69,194.07,194.02,2.55003718]
[1761378841770,0.69,194.06,194.02,2.55003718]
[1761378841950,16.16628259,194.06,194.02,2.55003718]
[1761378842151,21.31935246,194.06,194.02,2.55003718]
[1761378842557,16.71928164,194.07,194.03,2.55003718]
[1761378842871,32.19556423,194.07,194.04,35.64]
[1761378843259,16.71928164,194.07,194.04,35.64]
[1761378843574,32.19556423,194.07,194.04,35.64]
[1761378844153,16.71928164,194.07,194.04,35.64]
[1761378844489,32.19556423,194.07,194.04,35.64]
[1761378846374,16.71928164,194.07,194.04,35.64]
[1761378847467,16.02928164,194.07,194.04,35.64]
[1761378849543,16.71928164,194.07,194.04,35.64]
[1761378850271,5.84280643,194.07,194.04,35.64]
[1761378850773,5.15280643,194.07,194.04,35.64]
[1761378851072,5.84280643,194.07,194.04,35.64]
[1761378851875,16.16628259,194.11,194.04,38.19003718]
[1761378852075,102.2,194.12,194.09,2.55003718]
[1761378852375,10.87647521,194.13,194.1,35.64]
[1761378852546,0.69,194.12,194.1,35.64]
[1761378854451,5.84161986,194.12,194.1,35.64]
[1761378854849,0.69,194.11,194.1,35.64]
[1761378856686,5.84171809,194.11,194.1,35.64]
[1761378857583,5.84171809,194.11,194.07,2.55003718]
[1761378857757,0.69,194.1,194.08,35.64]
[1761378858872,5.84205901,194.1,194.08,35.64]
[1761378860077,0.69,194.09,194.08,35.64]
[1761378864376,5.84224895,194.09,194.08,35.64]
[1761378864774,5.84224895,194.09,194.05,2.55003718]
[1761378864970,0.69,194.08,194.06,35.62]
[1761378866285,5.8427106,194.08,194.06,35.62]
[1761378866682,5.8427106,194.08,194.04,2.55003718]
[1761378867004,5.8427106,194.08,194.05,35.62]
[1761378870265,0.69,194.07,194.05,35.62]
[1761378871872,5.15274249,194.08,194.05,35.62]
[1761378872061,5.84274249,194.08,194.05,35.62]
[1761378872262,0.69,194.07,194.05,35.62]
[1761378902512,5.15274249,194.08,194.05,35.62]
[1761378902805,5.81274249,194.08,194.05,35.62]
[1761378903504,5.15224895,194.09,194.05,35.62]
[1761378903809,0.66,194.11,194.07,1.63198597]
[1761378903994,0.66,194.11,194.08,35.62]
[1761378904905,5.8118072,194.11,194.08,35.62]
[1761378905486,0.66,194.1,194.08,35.62]
[1761378909318,0.66,194.1,194.08,37.25198597]
[1761378910312,0.66,194.11,194.08,37.25198597]
[1761378910511,0.66,194.11,194.08,35.62]
[1761378910711,2.29198597,194.11,194.08,35.62]
[1761378910893,13.16846118,194.11,194.08,35.62]
[1761378911093,0.66,194.1,194.08,35.62]
[1761378911288,3.85197348,194.09,194.08,35.62]
[1761378911503,5.48395945,194.09,194.05,15.47308971]
[1761378911701,4.51197348,194.08,194.06,35.62]
[1761378912005,16.36043466,194.07,194.06,35.62]
[1761378912196,22.17321458,194.07,194.06,35.62]
[1761378912796,3.85197348,194.07,194.06,37.25198597]
[1761378913202,3.85197348,194.07,194.06,35.62]
[1761378916416,5.81230177,194.09,194.06,35.62]
[1761378916621,3.85150511,194.08,194.06,35.62]
[1761378916821,3.85150511,194.07,194.06,35.62]
[1761378918914,4.51150511,194.07,194.06,35.62]
[1761378920225,3.85150511,194.07,194.06,35.62]
[1761378922033,3.85199492,194.07,194.06,35.62]
[1761378922530,0.67,194.08,194.06,35.62]
[1761378925629,5.8226026,194.08,194.07,35.62]
[1761378925825,5.8226026,194.08,194.03,6.78464264]
[1761378926016,0.67,194.07,194.04,35.62]
[1761378926327,0.67,194.07,194.03,6.78464264]
[1761378926515,0.67,194.07,194.04,35.62]
[1761378926827,0.67,194.07,194.03,6.78464264]
[1761378927046,0.67,194.07,194.04,35.62]
[1761378927330,0.67,194.07,194.03,6.78464264]
[1761378927532,0.67,194.07,194.04,35.62]
[1761378927833,0.67,194.07,194.03,6.78464264]
[1761378928127,0.67,194.07,194.04,35.62]
[1761378928332,0.67,194.07,194.03,6.78464264]
[1761378928633,0.67,194.07,194.04,35.62]
[1761378928824,0.67,194.07,194.05,35.62]
[1761378931534,5.8228197,194.07,194.05,35.62]
[1761378932240,0.67,194.06,194.05,35.62]
[1761378940732,4.52228297,194.06,194.05,35.62]
[1761378941114,9.67532841,194.06,194.05,35.62]
[1761378941333,22.18378959,194.06,194.05,35.62]
[1761378941727,20.55180362,194.06,194.05,35.62]
[1761378943014,20.55082775,194.06,194.05,35.62]
[1761378947745,15.39778231,194.06,194.05,35.62]
[1761378948034,20.55082775,194.06,194.05,35.62]
[1761378955548,9.67435254,194.06,194.05,35.62]
[1761378968561,9.00435254,194.06,194.05,35.62]
[1761378968933,9.70435254,194.06,194.05,35.62]
[1761378971158,9.70587045,194.06,194.05,35.62]
[1761378975062,9.00587045,194.06,194.05,35.62]
[1761378976565,10.87647521,194.09,194.05,38.17084736]
[1761378976766,3.85427525,194.08,194.05,38.17084736]
[1761378976947,3.85427525,194.07,194.06,2.55084736]
[1761378977658,3.85427525,194.07,194.06,18.02473517]
[1761378978463,3.85445782,194.07,194.06,18.02473517]
[1761378980866,5.15229713,194.09,194.06,18.02473517]
[1761378981059,3.85460088,194.08,194.07,35.62]
[1761378981644,3.85460088,194.08,194.07,51.09388781]
[1761378982768,4.54460088,194.08,194.07,51.09388781]
[1761378983078,10.87647521,194.07,193.99,2.55084736]
[1761378983365,6.40544824,194.06,194.02,15.47708102]
[1761378983676,3.85460088,194.05,194.03,35.62]
[1761378983854,0.69,194.05,194.03,35.62]
[1761378984058,0.69,194.04,194.03,35.62]
[1761378987261,5.84357658,194.04,194.03,35.62]
[1761378989952,9.69785702,194.04,194.03,35.62]
[1761378999488,9.69681904,194.04,194.03,35.62]
[1761379011195,9.69760757,194.04,194.03,35.62]
[1761379011994,9.00760757,194.04,194.03,35.62]
[1761379012698,9.67760757,194.04,194.03,35.62]
[1761379013078,3.85403099,194.04,194.03,35.62]
[1761379013377,5.15335609,194.05,194.03,35.62]
[1761379013586,5.82335609,194.05,194.03,35.62]
[1761379013783,5.15335609,194.05,194.03,35.62]
[1761379013992,5.82335609,194.05,194.03,35.62]
[1761379014499,5.15304544,194.06,194.03,35.62]
[1761379014676,0.67,194.04,194.03,35.62]
[1761379014999,5.15304544,194.06,194.03,35.62]
[1761379015187,5.82304544,194.06,194.03,35.62]
[1761379015790,0.67,194.05,194.03,35.62]
[1761379016803,5.82331327,194.05,194.03,35.62]
[1761379017501,5.15308235,194.06,194.03,35.62]
[1761379017880,0.67,194.05,194.03,35.62]
[1761379024501,0.68,194.07,194.04,1.63268213]
[1761379024705,0.68,194.07,194.0,14.51893968]
[1761379024706,0.68,194.08,194.05,35.6]
[1761379024880,3.8553437,194.07,194.06,35.6]
[1761379025389,4.5353437,194.07,194.06,35.6]
[1761379026404,9.68812362,194.07,194.06,35.6]
[1761379032203,5.83277992,194.07,194.06,35.6]
[1761379033098,10.87647521,194.06,194.02,15.47548425]
[1761379033301,1.63268213,194.04,194.03,35.6]
[1761379033604,2.31268213,194.05,194.03,35.6]
[1761379033790,0.68,194.04,194.03,35.6]
[1761379057131,0.68,194.04,194.0,16.03100996]
[1761379057324,0.68,194.04,194.01,35.6]
[1761379058118,0.68,194.04,194.02,35.6]
[1761379068141,0.68,194.04,194.0,17.66369209]
[1761379068342,0.68,194.04,194.01,35.6]
[1761379070541,0.68,194.04,194.0,18.58191972]
[1761379070842,0.68,194.04,194.02,35.6]
[1761379079243,17.28670508,194.03,194.02,35.6]
[1761379079629,18.00670508,194.03,194.02,35.6]
[1761379079834,15.45579532,194.03,194.02,35.6]
[1761379080149,18.00670508,194.03,194.02,35.6]
[1761379080351,23.16054726,194.03,194.02,35.6]
[1761379082831,3.85932011,194.03,194.02,35.6]
[1761379083638,4.57932011,194.03,194.02,35.6]
[1761379084848,3.85932011,194.03,194.02,35.6]
[1761379085555,5.87361112,194.04,194.02,35.6]
[1761379086046,0.72,194.06,194.03,2.55090976]
[1761379086226,3.85691347,194.05,194.03,2.55090976]
[1761379086428,5.1531308,194.06,194.03,2.55090976]
[1761379086750,3.85676913,194.05,194.04,2.55090976]
[1761379087049,3.85676913,194.05,194.04,38.15090976]
[1761379087422,5.87280738,194.07,194.04,38.15090976]
[1761379087627,4.57667463,194.06,194.04,38.15090976]
[1761379087854,0.72,194.06,194.04,38.15090976]
[1761379088156,0.72,194.06,194.04,35.6]
[1761379090257,5.15280738,194.07,194.04,35.6]
[1761379090461,3.85615705,194.06,194.04,35.6]
[1761379090645,5.87280738,194.07,194.04,35.6]
[1761379090836,3.85615705,194.06,194.04,35.6]
[1761379091154,5.87280738,194.07,194.04,35.6]
[1761379091355,3.85610996,194.06,194.04,35.6]
[1761379091562,5.87280738,194.07,194.04,35.6]
[1761379091732,3.85600946,194.06,194.04,35.6]
[1761379092057,0.72,194.07,194.04,35.6]
[1761379092260,3.85596044,194.06,194.04,35.6]
[1761379092466,0.72,194.07,194.04,35.6]
[1761379092645,3.85587279,194.06,194.04,35.6]
[1761379092943,0.72,194.07,194.04,35.6]
[1761379093142,3.85566412,194.06,194.04,35.6]
[1761379093353,0.72,194.07,194.04,35.6]
[1761379094560,122.82774899,194.09,194.04,35.6]
[1761379094739,108.07226474,194.09,194.05,2.55090976]
[1761379094944,0.72,194.08,194.04,38.15090976]
[1761379098266,0.72,194.08,194.04,43.30446207]
[1761379100036,102.2,194.09,194.04,40.75355231]
[1761379100243,102.89,194.09,194.05,2.55090976]
[1761379100751,2.55090976,194.07,193.98,13.40302613]
[1761379100948,2.55090976,194.07,194.02,2.55090976]
[1761379101154,0.69,194.06,194.03,35.58]
[1761379102066,7.70459977,194.04,194.03,35.58]
[1761379102244,8.39459977,194.04,194.03,35.58]
[1761379113587,19.27107498,194.04,194.03,35.58]
[1761379113960,34.74895451,194.04,194.03,35.58]
[1761379117275,10.87647521,194.03,194.0,35.6]
[1761379117575,2.55090976,194.01,194.0,35.6]
[1761379118074,3.24090976,194.01,194.0,35.6]
[1761379118276,8.39528324,194.01,194.0,35.6]
[1761379124669,5.84437348,194.01,194.0,35.6]
[1761379124982,5.15437348,194.01,194.0,35.6]
[1761379125872,5.15414706,194.02,194.0,35.6]
[1761379126073,5.15389073,194.03,194.0,35.6]
[1761379126567,5.84389073,194.03,194.0,35.6]
[1761379128386,5.15389073,194.03,194.0,35.6]
[1761379129391,5.15357429,194.05,194.0,35.6]
[1761379129578,5.15357429,194.05,194.01,1.63276062]
[1761379130287,108.04307958,194.06,194.02,1.63276062]
[1761379133586,108.04307958,194.06,194.01,6.78710826]
[1761379134461,5.84307958,194.06,194.01,6.78710826]
[1761379135669,6.78554054,194.07,194.01,5.15434764]
[1761379135965,7.45554054,194.07,194.02,1.63276062]
[1761379136369,0.67,194.06,194.02,1.63276062]
[1761379137787,0.67,194.06,193.98,5.15511343]
[1761379137788,1.63276062,194.03,193.98,5.15511343]
[1761379137989,1.63276062,194.02,193.99,35.6]
[1761379138360,2.30276062,194.02,193.99,35.6]
[1761379138984,1.63276062,194.02,193.99,35.6]
[1761379139363,2.31276062,194.03,193.99,35.6]
[1761379140381,0.68,194.02,193.99,35.6]
[1761379141796,0.68,194.02,193.99,37.23276062]
[1761379142693,0.68,194.02,193.99,42.38762386]
[1761379145200,5.15378532,194.04,193.99,42.38762386]
[1761379145500,0.68,194.04,194.0,1.63276062]
[1761379147300,10.87647521,194.06,194.01,1.63276062]
[1761379147493,115.08098978,194.09,194.05,1.63276062]
[1761379147494,0.68,194.08,194.05,1.63276062]
[1761379147696,0.68,194.08,194.06,35.6]
[1761379148605,5.83256933,194.08,194.06,35.6]
[1761379148800,0.68,194.08,194.06,35.6]
[1761379154104,12.50923583,194.07,193.99,1.63276062]
[1761379154291,1.63276062,194.05,194.0,35.6]
[1761379154689,0.68,194.04,194.0,35.6]
[1761379155398,0.68,194.04,194.0,40.75445037]
[1761379155617,0.68,194.04,194.0,42.38721099]
[1761379155797,0.68,194.06,194.0,40.75445037]
[1761379155999,0.68,194.06,194.02,1.63276062]
[1761379156200,0.68,194.06,194.03,35.62]
[1761379165899,16.02898963,194.08,194.03,35.62]
[1761379166100,0.67,194.07,194.03,35.62]
[1761379167018,5.82281812,194.07,194.03,35.62]
[1761379168222,0.67,194.06,194.03,35.62]
[1761379168527,0.67,194.06,194.03,37.25276062]
[1761379169117,5.15281812,194.07,194.03,37.25276062]
[1761379169323,5.82281812,194.07,194.03,37.25276062]
[1761379171726,5.15251442,194.08,194.03,35.62]
[1761379171933,0.67,194.06,194.03,37.25276062]
[1761379176735,5.15251442,194.08,194.03,42.4065713]
[1761379177034,0.67,194.07,194.03,42.4065713]
[1761379180343,0.67,194.07,194.03,40.77381068]
[1761379180521,0.67,194.07,194.03,42.4065713]
[1761379187538,5.82281256,194.07,194.03,35.62]
[1761379188024,0.67,194.06,194.03,35.62]
[1761379195334,7.70286516,194.08,194.03,40.77377735]
[1761379195541,0.66,194.05,194.03,40.77377735]
[1761379197152,0.66,194.06,194.03,40.77377735]
[1761379200388,0.66,194.06,194.03,35.62]
[1761379201243,5.86295552,194.07,194.03,35.62]
[1761379201646,5.15295552,194.07,194.03,35.62]
[1761379201952,0.71,194.06,194.03,35.62]
[1761379202661,11.58647521,194.1,194.05,2.55029345]
[1761379202961,0.71,194.09,194.06,38.15029345]
[1761379203141,0.71,194.09,194.07,35.6]
[1761379205272,8.41256229,194.09,194.07,35.6]
[1761379205650,0.71,194.08,194.07,35.6]
[1761379206153,8.41280787,194.08,194.03,18.02418126]
[1761379206456,8.41280787,194.08,194.04,35.58]
[1761379206643,0.71,194.07,194.04,35.58]
[1761379207145,3.26029345,194.07,194.04,35.58]
[1761379207668,0.71,194.06,194.04,35.58]
[1761379214266,13.42676866,194.05,193.96,7.84631813]
[1761379214468,2.55029345,194.01,193.97,35.58]
[1761379214671,2.55029345,194.02,193.97,35.58]
[1761379215055,2.55029345,194.0,193.97,35.58]
[1761379215257,3.26029345,194.01,193.97,35.58]
[1761379215573,3.26029345,194.03,193.98,2.55029345]
[1761379216061,0.71,194.02,193.98,2.55029345]
[1761379216467,0.71,194.02,193.98,7.70539321]
[1761379219857,0.66,194.04,194.01,2.55029345]
[1761379220064,0.66,194.04,194.02,38.15029345]
[1761379220668,0.66,194.05,194.02,38.15029345]
[1761379222472,0.66,194.05,194.02,35.6]
[1761379222775,5.81336348,194.05,194.02,35.6]
[1761379223154,0.66,194.04,194.02,35.6]
[1761379230281,0.66,194.05,194.02,35.6]
[1761379230486,5.15304544,194.06,194.02,35.6]
[1761379230781,0.66,194.04,194.02,35.6]
[1761379235772,0.66,194.04,194.0,7.70467464]
[1761379235973,0.66,194.04,194.01,35.6]
[1761379236290,0.66,194.04,194.01,38.15029345]
[1761379237086,0.66,194.04,194.01,35.6]
[1761379237590,0.66,194.04,194.02,35.6]
[1761379239577,5.81363684,194.04,193.99,10.30826307]
[1761379239895,5.81363684,194.04,194.0,35.6]
[1761379240071,0.66,194.03,194.0,35.6]
[1761379240692,0.66,194.03,193.99,2.55029345]
[1761379240871,0.66,194.03,194.0,35.6]
[1761379242074,5.8138448,194.03,194.0,35.6]
[1761379242375,5.8138448,194.03,194.01,35.6]
[1761379242575,0.66,194.02,194.01,35.6]
[1761379246794,0.7730323,194.02,194.01,35.6]
[1761379248080,0.1130323,194.02,194.01,38.15029345]
[1761379249698,0.1130323,194.02,194.01,35.6]
[1761379254488,0.1130323,194.02,194.01,40.75437348]
[1761379258212,0.1130323,194.02,194.01,35.6]
[1761379258409,0.7630323,194.02,194.01,35.6]
[1761379258604,0.1130323,194.02,194.01,35.6]
[1761379262520,0.1130323,194.02,194.01,42.38686562]
[1761379262693,0.1130323,194.02,194.01,65.78230296]
[1761379263901,0.1130323,194.02,194.01,70.93460124]
[1761379267822,0.1130323,194.02,194.01,69.3021091]
[1761379268120,0.1130323,194.02,194.01,70.93460124]
[1761379271021,0.1130323,194.02,194.01,69.3021091]
[1761379271209,0.1130323,194.02,194.01,70.4191639]
[1761379271403,0.1130323,194.02,194.01,65.26686562]
[1761379275310,0.1130323,194.02,194.01,72.05164311]
[1761379283047,0.1130323,194.02,194.01,49.17164311]
[1761379290127,0.1130323,194.02,194.01,49.68708045]
[1761379293637,0.69,194.09,194.04,22.88]
[1761379293840,0.69,194.09,194.08,1.63249214]
[1761379294042,0.69,194.09,194.08,37.21249214]
[1761379294537,0.69,194.09,194.08,42.36500656]
[1761379294864,11.56647521,194.09,194.08,42.36500656]
[1761379295151,0.69,194.09,194.08,42.36500656]
[1761379295354,0.69,194.09,194.08,65.24500656]
[1761379295954,0.2,194.16,194.08,78.12629262]
[1761379296155,0.69,194.12,194.11,1.63249214]
[1761379296450,0.69,194.12,194.11,37.21249214]
[1761379296646,0.69,194.12,194.11,42.36399751]
[1761379297642,0.69,194.12,194.11,6.78399751]
[1761379297848,0.69,194.12,194.11,35.58]
[1761379299047,11.56647521,194.12,194.11,35.58]
[1761379302034,10.87647521,194.11,194.09,10.87647521]
[1761379302255,10.87647521,194.09,194.06,0.51530454]
[1761379302441,10.87647521,194.09,194.06,11.56647521]
[1761379302643,11.56647521,194.08,194.07,35.58]
[1761379302951,10.87647521,194.07,194.05,24.51249214]
[1761379303271,0.69,194.07,194.06,35.58]
[1761379303566,10.87647521,194.1,194.06,35.58]
[1761379303950,10.87647521,194.08,194.06,35.58]
[1761379304149,10.87647521,194.08,194.06,37.21249214]
[1761379304455,0.69,194.07,194.06,42.36551634]
[1761379304835,0.69,194.07,194.06,40.7330242]
[1761379305032,0.69,194.07,194.06,42.36551634]
[1761379307242,0.69,194.07,194.06,40.7330242]
[1761379308250,10.87647521,194.07,194.06,42.36551634]
[1761379308470,0.69,194.07,194.06,42.36551634]
[1761379310665,0.69,194.07,194.06,40.7330242]
[1761379310849,0.69,194.07,194.06,43.28217057]
[1761379312471,0.69,194.07,194.06,40.7330242]
[1761379312657,0.69,194.07,194.06,43.28217057]
[1761379312970,0.69,194.07,194.06,40.7330242]
[1761379313269,0.69,194.07,194.06,43.28217057]
[1761379314475,0.69,194.07,194.06,40.7330242]
[1761379314773,0.69,194.07,194.06,43.28217057]
[1761379315352,0.69,194.07,194.06,40.7330242]
[1761379315554,0.69,194.07,194.06,43.28217057]
[1761379316361,0.69,194.07,194.06,40.7330242]
[1761379316557,0.69,194.07,194.06,43.28217057]